Cogmind - Beta 16.1 @@@ ROGUE MODE // 2026.04.14 @ 09:10:40 Player: ae Result: Escaped! Performance ------------- Evolutions (9) 4500 Regions Visited (14) 2800 Robots Destroyed (73) 365 Value Destroyed (1848) 1848 Prototype IDs (35) 700 Alien Tech Used (0) 0 Bonus (4616) 4616 TOTAL SCORE: 14829 Bonus ------- High Alert Combat Kills 116 Entered Garrisons 200 Used RIF Installer 500 Entered DSFs 500 Aligned with FarCom 300 Win 3000 Cogmind --------- Core Integrity 1600/1600 Matter 23/300 Energy 104/150 System Corruption 5% Temperature Cool (28) Movement Flying (19) Location To Epsilon Eridani Parts ------- > --- POWER (2) -------- Micro Antimatter Reactor > --- PROPULSION (8) --- Improved VTOL Module Improved VTOL Module Cooled VTOL Module Nuclear Pulse Thruster Cooled Cesium-ion Thruster Nuclear Pulse Array Q-thruster > --- UTILITY (13) ----- Improved Cooling System Structural Scanner Experimental Optical Array Stasis Canceller Advanced Reaction Control System Cloaking Device Improved Propulsion Shielding Improved Light Armor Plating Improved Medium Armor Plating > --- WEAPON (2) ------- Enhanced Nova Cannon > --- INVENTORY (5) ---- Micro Antimatter Reactor Nuclear Pulse Thruster Powered Armor Greatsword Peak State ------------ > --- POWER ------------ Micro Antimatter Reactor Micro Antimatter Reactor > --- PROPULSION ------- Nuclear Pulse Thruster Nuclear Pulse Thruster Nuclear Pulse Array Flying Fortress v7 > --- UTILITY ---------- High-capacity Storage Unit Structural Scanner Experimental Optical Array Spectral Analyzer Improved Propulsion Shielding Improved Light Armor Plating Hacking Suite Hacking Suite Improved Hacking Suite Improved Hacking Suite System Shield Improved System Shield Improved System Shield > --- WEAPON ----------- Greatsword > --- INVENTORY -------- Micro Antimatter Reactor Micro Antimatter Reactor Improved VTOL Module Improved VTOL Module Improved VTOL Module Cooled VTOL Module Cooled Cesium-ion Thruster Q-thruster Cooled Q-thruster Improved Cooling System Stasis Canceller Advanced Reaction Control System Cloaking Device Improved Medium Armor Plating Improved Medium Armor Plating Powered Armor System Shield Enhanced Nova Cannon Rocket Array Improved Remote Datajack [Rating: 143] Favorites ----------- Power Micro Antimatter Reactor Engine Light Ion Engine Power Core Micro Fission Core Reactor Micro Antimatter Reactor Propulsion Nuclear Pulse Thruster Treads Light Treads Flight Unit Nuclear Pulse Thruster Utility Hacking Suite Device Structural Scanner Storage High-capacity Storage Unit Processor Transport Network Coupler Hackware Hacking Suite Protection Improved Light Armor Plating Weapon Light Assault Rifle Energy Gun Medium Laser Energy Cannon Enhanced Nova Cannon Ballistic Gun Light Assault Rifle Launcher Heavy Missile Launcher Impact Weapon Great Maul Slashing Weapon Greatsword Build | -11 -10 -10 -10 -9 -8 -7 -6 -5 -5 -5 -4 -3 -2 -1 ------- Run | Yrd Mat Min Exi Min Mat Fac Fac Fac DSF Gar Fac Res Res Acc Slots Evolved 18 | . . . . . 4 2 2 2 . . 2 2 2 2 Power 1 | . . . . . . . . . . . 1 . . . Propulsion 6 | . . . . . 4 . . . . . 1 1 . . Utility 11 | . . . . . . 2 2 2 . . . 1 2 2 Weapon . | . . . . . . . . . . . . . . . Parts Attached 74 | 5 7 2 . 1 5 5 10 2 . 4 7 3 7 16 Power 6 | 1 1 . . . . 1 . . . . 1 . 2 . Engine 2 | 1 1 . . . . . . . . . . . . . Core 2 | . . . . . . 1 . . . . 1 . . . Reactor 2 | . . . . . . . . . . . . . 2 . Propulsion 21 | 2 2 1 . . 1 . 2 . . 1 4 1 . 7 Treads 2 | 2 . . . . . . . . . . . . . . Leg . | . . . . . . . . . . . . . . . Wheel . | . . . . . . . . . . . . . . . Hover . | . . . . . . . . . . . . . . . Flight 19 | . 2 1 . . 1 . 2 . . 1 4 1 . 7 Utility 34 | 1 2 . . . 3 2 6 2 . 3 2 2 3 8 Device 9 | 1 . . . . . 1 . . . 2 2 2 . 1 Storage 4 | . 1 . . . 3 . . . . . . . . . Processor 5 | . 1 . . . . . 1 1 . . . . . 2 Hackware 9 | . . . . . . . 3 . . . . . 2 4 Protection 7 | . . . . . . 1 2 1 . 1 . . 1 1 Artifact . | . . . . . . . . . . . . . . . Weapon 13 | 1 2 1 . 1 1 2 2 . . . . . 2 1 Energy Gun 1 | . 1 . . . . . . . . . . . . . Energy Cannon 3 | . . . . . . . . . . . . . 2 1 Ballistic Gun 4 | 1 1 1 . . . 1 . . . . . . . . Ballistic Cannon . | . . . . . . . . . . . . . . . Launcher 1 | . . . . . . . 1 . . . . . . . Special Weapon . | . . . . . . . . . . . . . . . Impact Weapon 2 | . . . . 1 1 . . . . . . . . . Slashing Weapon 2 | . . . . . . 1 1 . . . . . . . Piercing Weapon . | . . . . . . . . . . . . . . . Special Melee Weapon . | . . . . . . . . . . . . . . . Unidentified Prototypes 6 | . . . . . . 1 . . . . 1 1 1 2 Parts Lost 2 | . . . . . . . . . . 2 . . . . Power . | . . . . . . . . . . . . . . . Propulsion 1 | . . . . . . . . . . 1 . . . . Utility 1 | . . . . . . . . . . 1 . . . . Weapon . | . . . . . . . . . . . . . . . Highest Loss Streak 1 | . . . . . . . . . . 1 . . . . To Critical Strikes . | . . . . . . . . . . . . . . . Average Backups 14 | 3 4 5 3 2 6 16 19 19 18 19 19 18 18 16 Power . | . . . . . . . . . . . . . 1 1 Propulsion 4 | 1 2 3 1 1 1 1 4 8 8 7 6 5 5 5 Utility 6 | . . . . . 4 11 11 8 7 8 11 11 10 6 Weapon 2 | 1 1 2 1 . . 3 4 3 3 2 2 1 2 1 Tool/Special . | . . . . . . . . . . . . . . . Unused Backups 35 | . 5 . 4 . . 4 12 . . . 1 1 . 8 Power 2 | . . . . . . . . . . . . . . 2 Propulsion 9 | . 3 . 3 . . . 2 . . . . 1 . . Utility 17 | . 1 . . . . 4 8 . . . 1 . . 3 Weapon 6 | . 1 . 1 . . . 2 . . . . . . 2 Tool/Special 1 | . . . . . . . . . . . . . . 1 Average Slot Usage (%) 80 | . 88 100 100 100 72 71 78 64 76 74 77 73 76 79 Engine 5 | . 9 14 14 14 9 6 6 5 5 5 5 4 3 . Reactor 1 | . . . . . . . . . . . . . . 7 Flight 20 | . 18 28 28 28 27 23 20 17 17 17 20 19 17 18 Device 7 | . 14 14 14 14 1 3 6 5 5 2 9 11 11 7 Storage 3 | . . . . . 7 7 6 5 5 5 5 4 4 3 Processor 6 | . 11 14 14 14 9 7 2 . 5 5 5 4 4 4 Hackware 12 | . . . . . . . 16 17 17 17 15 14 17 24 Protection 6 | . . . . . . 6 5 5 11 11 5 4 8 9 Ballistic Gun 6 | . 23 28 28 15 9 7 3 . . . . . . . Impact Weapon 1 | . . . . 12 9 2 . . . . . . . . Slashing Weapon 2 | . . . . . . 4 6 5 5 3 4 4 2 . Peak Build Rating 143 | 4 7 7 10 10 43 55 75 82 83 88 101 113 126 143 Average Rating 74 | 2 6 7 8 9 41 51 70 76 82 82 96 103 118 131 On Entrance 53 | . 4 7 7 10 10 43 55 75 82 83 85 101 113 126 Avg Prop Armor Cover (%) 31 | 32 31 . . . . . . . . . . . . . Naked Turns . | . . . . . . . . . . . . . . . Heaviest Build 105 | 2 7 6 6 7 48 58 59 58 58 66 61 60 72 105 Greatest Support 75 | 40 8 8 8 8 58 58 61 61 61 61 68 75 75 75 Greatest Overweight (x) 2 | . 2 . . . . . . . . 1 . . . 2 Average Overweight (x) . | . . . . . . . . . . . . . . . Largest Inventory Capacity 20 | 5 8 5 5 5 20 20 20 20 20 20 20 20 20 20 Average Capacity 15 | 5 5 5 5 5 12 20 20 20 20 20 20 19 20 17 Most Carried 20 | 5 5 5 5 5 11 20 20 20 19 20 20 20 20 20 Average Carried 14 | 4 4 5 4 4 6 16 19 19 18 19 19 18 18 17 Final Capacity 20 | 5 5 5 5 5 20 20 20 20 20 20 20 20 20 5 Final Carried 20 | 5 5 5 5 5 11 20 20 18 19 18 20 20 20 5 Class Distribution -------------------- 25% | Scavenger-Mutant 17% | Hacker-Scout 14% | Hacker-Mutant 12% | Wizard-Scout 8% | Scavenger-Scout 4% | Wizard-Ninja 4% | Mutant 4% | Scout 3% | Hacker-Ninja Dominant Class ---------------- Scavenger-Mutant | -10/Materials Scavenger-Mutant | -10/Mines Scavenger-Mutant | -10/Exiles Scavenger-Mutant | -9/Mines Scavenger-Mutant | -8/Materials Scavenger-Mutant | -7/Factory Hacker-Mutant | -6/Factory Hacker-Mutant | -5/Factory Hacker-Assassin | -5/DSF Hacker-Mutant | -5/Garrison Hacker-Scout | -4/Factory Hacker-Scout | -3/Research Hacker-Ninja | -2/Research Wizard-Scout | -1/Access Resources | -11 -10 -10 -10 -9 -8 -7 -6 -5 -5 -5 -4 -3 -2 -1 ----------- Run | Yrd Mat Min Exi Min Mat Fac Fac Fac DSF Gar Fac Res Res Acc Matter Collected 1770 | 270 112 32 . 10 9 388 244 . . 159 281 28 99 138 Remotely . | . . . . . . . . . . . . . . . Salvage Created 2128 | 105 201 46 . . 41 404 519 . . 323 193 28 99 169 Parts 132 | 9 25 3 . . 3 28 17 . . 15 14 5 3 10 Haulers Intercepted 9 | . 1 . . . . 2 4 . . . . . 1 1 Recyclers Shooed 2 | . 1 . . . . . . . . . 1 . . . Parts Field Recycled . | . . . . . . . . . . . . . . . Retrieved Matter . | . . . . . . . . . . . . . . . Parts Self-Destructed . | . . . . . . . . . . . . . . . Prevented . | . . . . . . . . . . . . . . . Parts Restored . | . . . . . . . . . . . . . . . Kills | -11 -10 -10 -10 -9 -8 -7 -6 -5 -5 -5 -4 -3 -2 -1 ------- Run | Yrd Mat Min Exi Min Mat Fac Fac Fac DSF Gar Fac Res Res Acc Combat Hostiles Destroyed 39 | . 9 3 . . 3 . 7 . . 17 . . . . Melee 3 | . . . . . 1 . 2 . . . . . . . Guns 12 | . 9 3 . . . . . . . . . . . . Cannons 1 | . . . . . 1 . . . . . . . . . AOE 22 | . . . . . . . 5 . . 17 . . . . Classes Destroyed 11 | 2 3 . . . . 3 . . . 2 1 . . . Worker 6 | . . . . . . 2 1 . . . 2 . . 1 Builder 5 | . . . . . . 3 . . . . 1 1 . . Tunneler 3 | 2 . . . . . . . . . . 1 . . . Hauler 9 | . 1 . . . . 2 4 . . . . . 1 1 Recycler 4 | 1 . . . . . 3 . . . . . . . . Mechanic 1 | . . . . . . . . . . . 1 . . . Operator 2 | . . . . . . 1 . . . . . . . 1 Watcher 4 | . 2 . . . . . . . . . 2 . . . Swarmer 30 | . 9 3 . . 3 . 7 . . 8 . . . . Grunt 8 | . . . . . . . . . . 8 . . . . Sentry 1 | . . . . . . . . . . 1 . . . . Best Kill Streak 8 | 2 6 3 . . 3 2 7 . . 8 3 1 1 1 Combat Bots Only 8 | . 6 3 . . 3 . 7 . . 8 . . . . Max Kills in Single Turn 2 | 1 2 1 . . 1 1 2 . . 2 1 1 1 1 Gunslinging 1 | . 1 . . . . . . . . . . . . . Exploded 2 | . . . . . . . 2 . . 2 . . . . Melee 1 | . . . . . 1 . 1 . . . . . . . Uniques/NPCs Destroyed . | . . . . . . . . . . . . . . . Combat | -11 -10 -10 -10 -9 -8 -7 -6 -5 -5 -5 -4 -3 -2 -1 -------- Run | Yrd Mat Min Exi Min Mat Fac Fac Fac DSF Gar Fac Res Res Acc Hostile Shots Fired 175 | . 16 7 . 2 30 . 38 . 7 70 . . 2 3 Missed 87 | . 3 2 . 2 16 . 18 . 3 39 . . 2 2 Hits 88 | . 13 5 . . 14 . 20 . 4 31 . . . 1 Projectile 88 | . 13 5 . . 14 . 20 . 4 31 . . . 1 Critical Strikes 8 | . . . . . 5 . . . . 3 . . . . Damage Taken 1272 | . 93 49 . . 159 . 242 . 148 555 . . . 26 Core 57 | . 21 30 . . 6 . . . . . . . . . Absorbed by Shields 41 | . . . . . . . . . . 41 . . . . Redirected to Shielding 17 | . . . . . . . . . . . . . . 17 Regen/Repaired (Parts) 137 | . . . . . . . . . . . 92 . . 45 Core Remaining (%) 97 | 100 . . . 79 98 100 100 . . 100 100 100 100 100 Volleys Fired 159 | 20 30 6 . 10 . 26 8 . . 25 . . 3 31 Largest 2 | 1 2 2 . 1 . 1 1 . . 1 . . 1 1 Hottest 120 | 20 70 40 . 20 . 28 39 . . 39 . . 40 120 Shots Fired 186 | 20 51 12 . 10 . 26 8 . . 25 . . 3 31 Gun 125 | 20 51 12 . 10 . 26 . . . 6 . . . . Cannon 33 | . . . . . . . . . . . . . 2 31 Launcher 28 | . . . . . . . 8 . . 19 . . 1 . Special . | . . . . . . . . . . . . . . . Kinetic 116 | 20 42 12 . 10 . 26 . . . 6 . . . . Thermal 40 | . 9 . . . . . . . . . . . . 31 Explosive 28 | . . . . . . . 8 . . 19 . . 1 . Electromagnetic 2 | . . . . . . . . . . . . . 2 . Robot Hit Streak 11 | 10 6 5 . 11 . 6 . . . 7 . . . 7 Robot Miss Streak 4 | 2 4 1 . 1 . 2 . . . 3 . . . 1 Penetration Max 1 | . . . . . . 1 . . . . . . . . Secondary Targets 1 | . 1 . . . . . . . . . . . . . Max Gunslinging Chain 1 | . 1 . . . . . . . . . . . . . Shots Hit Robots 139 | 16 27 9 . 8 4 35 14 . . 6 8 1 4 7 Core Hits 118 | 5 19 4 . 1 1 9 24 . . 44 6 . 1 4 Critical Kills 2 | 2 . . . . . . . . . . . . . . Critical Parts Destroyed 2 | . . . . . . 2 . . . . . . . . Critical Strikes 9 | 2 . . . . . 2 5 . . . . . . . Destroy 4 | 2 . . . . . 2 . . . . . . . . Sever 5 | . . . . . . . 5 . . . . . . . Melee Attacks 166 | . . . . . 9 36 38 1 2 22 23 5 11 19 Impact 11 | . . . . . 9 2 . . . . . . . . Slashing 155 | . . . . . . 34 38 1 2 22 23 5 11 19 Piercing . | . . . . . . . . . . . . . . . Sneak Attacks 25 | . . . . . . 11 5 . . . 6 1 1 1 Combat Hostiles . | . . . . . . . . . . . . . . . Follow-up Attacks . | . . . . . . . . . . . . . . . Damage Inflicted 7273 | 130 267 76 . 69 196 1392 1257 . . 2175 869 105 291 446 Guns 1025 | 130 267 76 . 69 . 424 . . . 59 . . . . Cannons 83 | . . . . . . . . . . . . . . 83 Explosions 2538 | . . . . . . . 422 . . 2116 . . . . Melee 3627 | . . . . . 196 968 835 . . . 869 105 291 363 Ramming . | . . . . . . . . . . . . . . . Kinetic 963 | 130 205 76 . 69 . 424 . . . 59 . . . . Thermal 145 | . 62 . . . . . . . . . . . . 83 Explosive 2538 | . . . . . . . 422 . . 2116 . . . . Electromagnetic . | . . . . . . . . . . . . . . . Impact 196 | . . . . . 196 . . . . . . . . . Slashing 3431 | . . . . . . 968 835 . . . 869 105 291 363 Piercing . | . . . . . . . . . . . . . . . Highest Corruption 5 | . . . . . . 5 . . . . . . . 5 Average Corruption 5 | . . . . . . 5 . . . . . . . 5 Corruption Purged . | . . . . . . . . . . . . . . . Corruption Blocked . | . . . . . . . . . . . . . . . Effects 22 | . . . . . . 16 . . . . . . . 6 Message Errors 7 | . . . . . . 5 . . . . . . . 2 Matter Fused 8 | . . . . . . 5 . . . . . . . 3 Heat Flow Errors 1 | . . . . . . 1 . . . . . . . . Energy Discharges 2 | . . . . . . 2 . . . . . . . . Parts Fused 1 | . . . . . . 1 . . . . . . . . Data Loss (minor) 2 | . . . . . . 2 . . . . . . . . Alerts 1 | . . . . . . . . . . . . . . 1 Overload Shots . | . . . . . . . . . . . . . . . Overflow Damage 633 | . . . . . 92 188 23 . . 74 139 75 . 42 Projectiles 56 | . . . . . 56 . . . . . . . . . Explosions 88 | . . . . . . . 14 . . 74 . . . . Melee 489 | . . . . . 36 188 9 . . . 139 75 . 42 Knockbacks 2 | . . . . . 2 . . . . . . . . . Impact . | . . . . . . . . . . . . . . . Kinetic . | . . . . . . . . . . . . . . . Secondary 2 | . . . . . 2 . . . . . . . . . Self-Inflicted Damage . | . . . . . . . . . . . . . . . Shots . | . . . . . . . . . . . . . . . Rammed . | . . . . . . . . . . . . . . . Targets Rammed . | . . . . . . . . . . . . . . . Kicked . | . . . . . . . . . . . . . . . Crushed . | . . . . . . . . . . . . . . . Highest Temperature 412 | . 40 8 . 4 20 205 . . . 24 . . 412 212 Average Temperature 58 | . 13 4 . 2 10 124 . . . 10 . . 235 63 Received Heat Transfer 386 | . . 20 . . 135 . 6 . . 216 . . . 9 Siege Activations . | . . . . . . . . . . . . . . . Martial Activations . | . . . . . . . . . . . . . . . Shielding Activations . | . . . . . . . . . . . . . . . Robots Disrupted . | . . . . . . . . . . . . . . . Combat Hostiles . | . . . . . . . . . . . . . . . Robots Corrupted 1 | . . . . . 1 . . . . . . . . . Combat Hostiles 1 | . . . . . 1 . . . . . . . . . Parts Fried . | . . . . . . . . . . . . . . . Impact Corruptions 5 | . . . . . 5 . . . . . . . . . Robots Melted . | . . . . . . . . . . . . . . . Combat Hostiles . | . . . . . . . . . . . . . . . Parts Melted . | . . . . . . . . . . . . . . . Heat Transferred 259 | . 185 . . . . . . . . . . . . 74 Parts Sabotaged . | . . . . . . . . . . . . . . . Parts Stolen . | . . . . . . . . . . . . . . . Parts Stripped . | . . . . . . . . . . . . . . . Power Chain Reactions . | . . . . . . . . . . . . . . . Alert | -11 -10 -10 -10 -9 -8 -7 -6 -5 -5 -5 -4 -3 -2 -1 ------- Run | Yrd Mat Min Exi Min Mat Fac Fac Fac DSF Gar Fac Res Res Acc Maximum Alert Level 4 | . . . . . . . 1 . . 4 2 . . . Low Security (%) 83 | 100 100 100 . 100 100 100 98 100 100 34 . 100 100 100 Level 1 5 | . . . . . . . 1 . . 6 50 . . . Level 2 6 | . . . . . . . . . . 15 49 . . . Level 3 5 | . . . . . . . . . . 42 . . . . Level 4 . | . . . . . . . . . . 1 . . . . Level 5 . | . . . . . . . . . . . . . . . High Security . | . . . . . . . . . . . . . . . Max Security . | . . . . . . . . . . . . . . . Peak Influence 1148 | 10 138 71 . . 110 45 206 99 73 1148 607 171 121 168 Initial 602 | . . 37 . . . 45 6 96 69 54 602 171 76 45 Average 143 | . 84 31 . . 27 10 54 98 70 547 470 150 84 37 Influence Increases 2875 | 15 343 71 . . 175 149 434 3 4 1114 104 46 121 296 Destroy 0b10 Robot/C 780 | . 180 60 . . 60 . 140 . . 340 . . . . Destroy 0b10 Robot/NC 165 | 15 15 . . . . 50 25 . . . 35 5 5 15 Destroy Leader 126 | . 36 10 . . 10 4 28 . . 30 4 . 2 2 Allied During Kill 1 | . . 1 . . . . . . . . . . . . Successful Hack 146 | . 6 . . . 27 34 12 1 . 6 24 18 18 . Disable Machine 90 | . . . . . . . 15 . . 30 15 . . 30 Anti-Garrison Action 100 | . . . . . . . . . . 100 . . . . Destroy Structure 567 | . 1 . . . 3 16 34 2 4 248 26 8 66 159 Partial Spotted 105 | . . . . . . 45 15 . . 15 . 15 15 . Lose Combat Pursuer 795 | . 105 . . . 75 . 165 . . 345 . . 15 90 Influence Decreases 2875 | 15 246 147 21 . 75 235 250 102 30 39 926 235 181 373 Entered New Map 1089 | . . 60 21 . . 55 8 102 30 19 546 155 61 32 Time Decay 1594 | 15 246 87 . . 65 180 232 . . . 230 80 120 339 Lost Part 20 | . . . . . . . . . . 20 . . . . Lost Ally 22 | . . . . . 10 . 10 . . . . . . 2 Purge Threat 150 | . . . . . . . . . . . 150 . . . Squads Dispatched 24 | . . . . . . 4 4 . 1 . 1 1 4 9 Investigation 4 | . . . . . . . 2 . . . . 1 1 . Extermination 8 | . . . . . . 1 1 . . . 1 . 1 4 Reinforcement 11 | . . . . . . 2 1 . 1 . . . 2 5 Assault . | . . . . . . . . . . . . . . . Garrison 1 | . . . . . . 1 . . . . . . . . Intercept . | . . . . . . . . . . . . . . . Searches Triggered . | . . . . . . . . . . . . . . . Construction Impeded . | . . . . . . . . . . . . . . . Haulers Reinforced 3 | . . . . . . 1 1 . . . . . 1 . Active Scanning Responses . | . . . . . . . . . . . . . . . Cargo Convoy Interrupts . | . . . . . . . . . . . . . . . Stealth | -11 -10 -10 -10 -9 -8 -7 -6 -5 -5 -5 -4 -3 -2 -1 --------- Run | Yrd Mat Min Exi Min Mat Fac Fac Fac DSF Gar Fac Res Res Acc Distress Signals 5 | . 3 . . . 1 . . . . . . 1 . . Communications Jammed . | . . . . . . . . . . . . . . . Distress Signals . | . . . . . . . . . . . . . . . Times Spotted 153 | . 22 19 . 3 12 6 21 . 4 43 3 2 6 12 Peak Tracking Total 20 | . 5 20 . 3 6 2 4 . 2 10 1 2 4 8 Tactical Retreats 25 | . 4 1 . . 3 . 5 . . 9 . . 1 2 Traps | -11 -10 -10 -10 -9 -8 -7 -6 -5 -5 -5 -4 -3 -2 -1 ------- Run | Yrd Mat Min Exi Min Mat Fac Fac Fac DSF Gar Fac Res Res Acc Traps Triggered 6 | . . . . . . . 2 . . 4 . . . . Indirectly . | . . . . . . . . . . . . . . . Trap Hack Attempts . | . . . . . . . . . . . . . . . Triggered . | . . . . . . . . . . . . . . . Disarmed . | . . . . . . . . . . . . . . . Reprogrammed . | . . . . . . . . . . . . . . . Reused . | . . . . . . . . . . . . . . . Traps Extracted . | . . . . . . . . . . . . . . . Installed . | . . . . . . . . . . . . . . . Triggered . | . . . . . . . . . . . . . . . Machines | -11 -10 -10 -10 -9 -8 -7 -6 -5 -5 -5 -4 -3 -2 -1 ---------- Run | Yrd Mat Min Exi Min Mat Fac Fac Fac DSF Gar Fac Res Res Acc Machines Disabled 8 | . . . . . . . 1 . . 4 1 . . 2 Max in Single Turn 1 | . . . . . . . 1 . . 1 1 . . 1 Garrison Access 3 | . . . . . . 1 1 . . . 1 . . . Garrison Relay 2 | . . . . . . . . . . 2 . . . . Energy Cycler 1 | . . . . . . . . . . . . . . 1 Machines Repaired . | . . . . . . . . . . . . . . . Machines Dismantled . | . . . . . . . . . . . . . . . Machines Sabotaged . | . . . . . . . . . . . . . . . Overloaded Fab Kills . | . . . . . . . . . . . . . . . Hacking | -11 -10 -10 -10 -9 -8 -7 -6 -5 -5 -5 -4 -3 -2 -1 --------- Run | Yrd Mat Min Exi Min Mat Fac Fac Fac DSF Gar Fac Res Res Acc Machines Accessed 54 | . 4 1 2 . 4 9 13 1 . 2 8 1 4 5 Terminals 31 | . 1 . . . 4 6 6 1 . 2 2 1 4 4 Fabricators 4 | . . . . . . 1 2 . . . 1 . . . Repair Stations 5 | . 1 . . . . . 1 . . . 2 . . 1 Recycling Units 3 | . 2 . . . . . 1 . . . . . . . Scanalyzers 4 | . . . . . . . 2 . . . 2 . . . Garrison Access 4 | . . . . . . 2 1 . . . 1 . . . Total Hacks 109 | . 10 1 2 . 9 15 25 1 . 3 19 3 9 12 Successful 61 | . 4 1 2 . 4 5 15 1 . 2 14 1 5 7 Failed 48 | . 6 . . . 5 10 10 . . 1 5 2 4 5 Catastrophic 12 | . 1 . . . . 4 1 . . . 1 . 1 4 Database Lockouts . | . . . . . . . . . . . . . . . Manual 46 | . 1 . 1 . 7 10 9 . . . 4 . 7 7 Terminals 65 | . 1 . . . 9 11 13 1 . 3 5 3 9 10 Fabricators 7 | . . . . . . 2 3 . . . 2 . . . Repair Stations 12 | . 2 . . . . . 1 . . . 7 . . 2 Recycling Units 8 | . 7 . . . . . 1 . . . . . . . Scanalyzers 10 | . . . . . . . 6 . . . 4 . . . Garrison Access 4 | . . . . . . 2 1 . . . 1 . . . Terminal Hacks 23 | . . 1 2 . 1 2 3 1 . 2 2 1 3 5 Record 1 | . . . 1 . . . . . . . . . . . Robot Analysis 1 | . . . . . . . 1 . . . . . . . Open Door 2 | . . 1 . . . . . . . . . . . 1 Open DSF 1 | . . . . . . . . 1 . . . . . . Level Access Points 5 | . . . . . . . 1 . . . 1 1 1 1 Branch Access Points 2 | . . . . . 1 1 . . . . . . . . Emergency Access Points 1 | . . . . . . . . . . 1 . . . . Terminal Index 1 | . . . . . . . . . . . . . 1 . Unreport Threat 1 | . . . . . . . . . . . 1 . . . Maintenance Status 1 | . . . . . . . . . . . . . . 1 Recall Extermination 1 | . . . . . . . 1 . . . . . . . Hauler Manifests 1 | . . . . . . . . . . . . . . 1 Registered Components 2 | . . . . . . 1 . . . . . . . 1 Zone Layout 1 | . . . . . . . . . . . . . 1 . Patrol Navigation 1 | . . . . . . . . . . 1 . . . . Proto ID Catalog 1 | . . . 1 . . . . . . . . . . . Fabricator Hacks . | . . . . . . . . . . . . . . . Repair Station Hacks 8 | . . . . . . . 1 . . . 5 . . 2 Scan Component 4 | . . . . . . . . . . . 3 . . 1 Repair 3 | . . . . . . . . . . . 2 . . 1 Refit 1 | . . . . . . . 1 . . . . . . . Recycling Unit Hacks 4 | . 3 . . . . . 1 . . . . . . . Retrieve Components 4 | . 3 . . . . . 1 . . . . . . . Scanalyzer 9 | . . . . . . . 5 . . . 4 . . . Insert Component 6 | . . . . . . . 4 . . . 2 . . . Retrieve Study 3 | . . . . . . . 1 . . . 2 . . . Garrison Access Hacks 3 | . . . . . . 1 1 . . . 1 . . . Seal Access 3 | . . . . . . 1 1 . . . 1 . . . Unauthorized Hacks 14 | . 1 . . . 3 2 4 . . . 2 . 2 . Terminals 10 | . 1 . . . 3 1 2 . . . 1 . 2 . Assimilate 6 | . 1 . . . 2 1 1 . . . . . 1 . Botnet 3 | . . . . . . . 1 . . . 1 . 1 . Operators 1 | . . . . . 1 . . . . . . . . . Fabricators 4 | . . . . . . 1 2 . . . 1 . . . Liberate 2 | . . . . . . 1 1 . . . . . . . Haulers 2 | . . . . . . . 1 . . . 1 . . . Repair Stations . | . . . . . . . . . . . . . . . Recycling Units . | . . . . . . . . . . . . . . . Scanalyzers . | . . . . . . . . . . . . . . . Garrison Access . | . . . . . . . . . . . . . . . Data Cores Recovered 1 | . . . . . . . . . . . . . . 1 Used 1 | . . . . . . . . . . . . . . 1 Hacking Detections 37 | . 3 . . . 1 8 9 . . 1 6 1 4 4 Full Trace Events 5 | . 1 . . . . . 2 . . . . 1 1 . Feedback Events . | . . . . . . . . . . . . . . . Feedback Blocked . | . . . . . . . . . . . . . . . Robot Schematics Acquired . | . . . . . . . . . . . . . . . Robots Built . | . . . . . . . . . . . . . . . Authchips . | . . . . . . . . . . . . . . . Time . | . . . . . . . . . . . . . . . Total Robot Build Rating . | . . . . . . . . . . . . . . . Part Schematics Acquired . | . . . . . . . . . . . . . . . Parts Built . | . . . . . . . . . . . . . . . Authchips . | . . . . . . . . . . . . . . . Time . | . . . . . . . . . . . . . . . Total Part Build Rating . | . . . . . . . . . . . . . . . Part Studies Acquired 3 | . . . . . . . 1 . . . 2 . . . Parts Repaired 3 | . . . . . . . . . . . 2 . . 1 Time 56 | . . . . . . . . . . . 44 . . 12 Parts Recycled . | . . . . . . . . . . . . . . . Recycled Matter . | . . . . . . . . . . . . . . . Retrieved Matter . | . . . . . . . . . . . . . . . Retrieved Components 7 | . 7 . . . . . . . . . . . . . Parts Scanalyzed . | . . . . . . . . . . . . . . . Part Schematics Acquired . | . . . . . . . . . . . . . . . Parts Damaged . | . . . . . . . . . . . . . . . Bothacking | -11 -10 -10 -10 -9 -8 -7 -6 -5 -5 -5 -4 -3 -2 -1 ------------ Run | Yrd Mat Min Exi Min Mat Fac Fac Fac DSF Gar Fac Res Res Acc Used RIF Installer 1 | . . . . . . . . . . 1 . . . . Robots Hacked . | . . . . . . . . . . . . . . . Non-combat . | . . . . . . . . . . . . . . . Combat . | . . . . . . . . . . . . . . . Robot Hacks Applied . | . . . . . . . . . . . . . . . Relay Couplers Released 10 | . . . . . . . . . . 10 . . . . Machine Destruction 10 | . . . . . . . . . . 10 . . . . Fabnet Peak Effective % . | . . . . . . . . . . . . . . . Robots Rewired . | . . . . . . . . . . . . . . . Allies Hacked . | . . . . . . . . . . . . . . . Hacks Repelled . | . . . . . . . . . . . . . . . Allies | -11 -10 -10 -10 -9 -8 -7 -6 -5 -5 -5 -4 -3 -2 -1 -------- Run | Yrd Mat Min Exi Min Mat Fac Fac Fac DSF Gar Fac Res Res Acc Total Allies 7 | . 1 1 . . 2 1 1 . . . . . 1 . Largest Group 2 | . 1 2 2 1 1 . 1 . . . . . 1 1 Highest-Rated Group 41 | . 10 41 41 10 10 . 10 . . . . . 26 26 Highest-Rated Ally 31 | . 10 31 31 10 10 . 10 . . . . . 26 26 Total Orders 3 | . . . . 2 . 1 . . . . . . . . STAY 2 | . . . . 1 . 1 . . . . . . . . FOLLOW 1 | . . . . 1 . . . . . . . . . . Ally Attacks . | . . . . . . . . . . . . . . . Total Damage . | . . . . . . . . . . . . . . . Kills . | . . . . . . . . . . . . . . . Allies Corrupted . | . . . . . . . . . . . . . . . Allies Melted . | . . . . . . . . . . . . . . . Intel | -11 -10 -10 -10 -9 -8 -7 -6 -5 -5 -5 -4 -3 -2 -1 ------- Run | Yrd Mat Min Exi Min Mat Fac Fac Fac DSF Gar Fac Res Res Acc Active Infowar (turns) 5962 | 19 529 206 217 232 201 625 760 12 70 737 483 166 259 1446 Optics 3280 | . . . . . . . 116 3 70 737 483 166 259 1446 Structural 3710 | . . . . . . 295 760 12 70 276 426 166 259 1446 Seismic 1100 | 19 529 206 217 129 . . . . . . . . . . T.N.C. 2150 | . 444 206 217 232 201 625 225 . . . . . . . Cloaking 682 | . . . . . . . . . . . . 2 89 591 Robot Analysis Total 1 | . . . . . . . 1 . . . . . . . Derelict Logs Recovered 4 | . . 3 . 1 . . . . . . . . . . Drone Launches . | . . . . . . . . . . . . . . . Drone Recoveries . | . . . . . . . . . . . . . . . Exploration | -11 -10 -10 -10 -9 -8 -7 -6 -5 -5 -5 -4 -3 -2 -1 ------------- Run | Yrd Mat Min Exi Min Mat Fac Fac Fac DSF Gar Fac Res Res Acc Turns Passed 6075 | 132 529 206 217 232 201 625 760 12 70 737 483 166 259 1446 Spaces Moved 8373 | 60 930 428 213 468 392 1022 1272 18 67 908 989 372 427 807 Core 248 | 13 235 . . . . . . . . . . . . . Treads 47 | 47 . . . . . . . . . . . . . . Legs . | . . . . . . . . . . . . . . . Wheels . | . . . . . . . . . . . . . . . Hover . | . . . . . . . . . . . . . . . Flight 8078 | . 695 428 213 468 392 1022 1272 18 67 908 989 372 427 807 Fastest Speed 19 | 50 37 37 37 37 37 37 37 37 37 35 31 33 33 19 Average Speed 36 | 136 40 37 37 37 37 37 37 37 37 37 32 33 33 33 Slowest Speed 169 | 160 150 37 37 37 37 37 37 37 37 120 35 33 33 169 Overloaded Moves . | . . . . . . . . . . . . . . . Propulsion Burnouts . | . . . . . . . . . . . . . . . Robots Hopped 61 | . 24 1 . 10 5 3 4 . 1 1 . . 8 4 Potential Cave-ins . | . . . . . . . . . . . . . . . Cave-ins Triggered . | . . . . . . . . . . . . . . . Exploration Rate (%) 48 | 4 99 86 60 93 37 25 35 . 80 88 29 9 12 22 Regions Visited 14 Branch Regions 3 Pre-discovered Areas 3 | . . 1 1 1 . . . . . . . . . . Known Exits Taken 5 | . . . . . . . 1 1 . . 1 1 1 . Unknown Exits Taken 7 | 1 1 1 1 1 1 1 . . . . . . . . Scrap Searched 3 | . . 1 . 2 . . . . . . . . . . Spaces Dug 110 | . . . . . 3 16 17 1 2 7 13 4 25 22 Terrain Destroyed 284 | . . . . . 3 16 33 1 2 121 13 4 25 66 Melee 77 | . . . . . 3 16 17 1 2 1 13 4 7 13 Projectile 15 | . . . . . . . . . . . . . . 15 AOE 192 | . . . . . . . 16 . . 120 . . 18 38 Terrain Rammed . | . . . . . . . . . . . . . . . Walls Destroyed . | . . . . . . . . . . . . . . . Machines Disabled . | . . . . . . . . . . . . . . . Actions | -11 -10 -10 -10 -9 -8 -7 -6 -5 -5 -5 -4 -3 -2 -1 --------- Run | Yrd Mat Min Exi Min Mat Fac Fac Fac DSF Gar Fac Res Res Acc Total 10846 | 92 1019 465 352 508 422 1188 1495 20 106 1236 1107 404 512 1920 Wait 1847 | . 59 29 135 38 15 74 99 . 38 230 73 2 58 997 Move 8238 | 59 884 425 212 448 382 1015 1263 17 64 902 988 371 410 798 Hop 56 | . 21 1 . 9 4 3 4 . 1 1 . . 8 4 Pick Up 89 | 6 7 . 1 1 6 15 18 . 1 1 6 16 2 9 Fast Attach 38 | 5 5 . . . 1 5 3 . . 1 5 5 3 5 Attach 46 | . 2 . . 1 1 1 4 2 . 8 1 . 5 21 Detach 40 | . 2 . . . 1 4 3 . . 6 . . 3 21 Swap 21 | . . 2 . . 3 . 5 . . . 3 . 4 4 Drop 77 | 2 9 2 4 1 . 9 20 . . 1 8 5 5 11 Fire 159 | 20 30 6 . 10 . 26 8 . . 25 . . 3 31 Melee 166 | . . . . . 9 36 38 1 2 22 23 5 11 19 Ram . | . . . . . . . . . . . . . . . Kick . | . . . . . . . . . . . . . . . Crush . | . . . . . . . . . . . . . . . Escape Stasis 69 | . . . . . . . 30 . . 39 . . . . Rewire . | . . . . . . . . . . . . . . . Trap . | . . . . . . . . . . . . . . . Miscellaneous . | . . . . . . . . . . . . . . . Route ------- -11/Scrapyard -10/Materials (discovered 5 exits: [*Mat x3] / *Min / [*Sub]) -10/Mines (discovered 3 exits: [*Mat x2] / *Exi) -10/Exiles -9/Mines (discovered 2 exits: *Mat x2) -8/Materials -7/Factory (discovered 5 exits: *Fac x2 / Sto / *Low x2) -6/Factory (discovered 6 exits: *Fac x4 / [*Low] / [*Ext]) -5/Factory -5/DSF -5/Garrison (discovered 3 exits: *Fac x3) -4/Factory (discovered 4 exits: *Res x4) -3/Research (discovered 3 exits: *Res x3) -2/Research (discovered 3 exits: *Acc x3) -1/Access To Epsilon Eridani History --------- Turn | Location | Event 9 | -11/Scrapyard | Discovered new exit (range 15) 133 | -11/Scrapyard | Entered Materials 175 | -10/Materials | Discovered new exit (range 9) 265 | -10/Materials | Discovered new exit (range 5) 359 | -10/Materials | Discovered new exit (range 10) 432 | -10/Materials | Discovered new exit (range 6) 448 | -10/Materials | Discovered new exit (range 13) 609 | -10/Materials | Build established: Scavenger-Mutant 633 | -10/Materials | Derelicts attacked the area 662 | -10/Materials | Entered Mines 662 | -10/Mines | Accompanied by 1 ally 672 | -10/Mines | Received a Mining Laser from a helpful Derelict 687 | -10/Mines | Assembled infested the area 709 | -10/Mines | Found the Drone Emporium 719 | -10/Mines | Met a Derelict bent on vengeance 732 | -10/Mines | Discovered new exit (range 8) 816 | -10/Mines | Discovered new exit (range 7) 838 | -10/Mines | Deemed a non-threat by the Exiles lab entrance 838 | -10/Mines | Discovered new exit (range 5) 868 | -10/Mines | Entered Exiles 868 | -10/Exiles | Accompanied by 2 allies 888 | -10/Exiles | Met 8R-AWN 915 | -10/Exiles | Met EX-HEX 949 | -10/Exiles | Met EX-BIN 966 | -10/Exiles | Aligned with FarCom system 967 | -10/Exiles | Given EX-Vault access code 976 | -10/Exiles | Opened EX-Vault 980 | -10/Exiles | Found Flying Fortress v7 989 | -10/Exiles | Warned to stay clear of 0b10 Research branches 1001 | -10/Exiles | Met EX-DEC 1002 | -10/Exiles | Learned location of Zion (-6) 1014 | -10/Exiles | Discovered new exit (range 12) 1085 | -10/Exiles | Left Exiles lab with Flying Fortress v7 1085 | -10/Exiles | Entered Mines 1085 | -9/Mines | Accompanied by 1 ally 1160 | -9/Mines | Learned location of Storage (-7) 1183 | -9/Mines | Learned location of 1 exit from Lower Caves 1205 | -9/Mines | Discovered new exit (range 13) 1236 | -9/Mines | Discovered new exit (range 9) 1317 | -9/Mines | Entered Materials 1317 | -8/Materials | Accompanied by 1 ally 1317 | -8/Materials | Evolved 4 slots: Propulsion x4 1512 | -8/Materials | Discovered new exit (range 10) 1518 | -8/Materials | Entered Factory 1518 | -7/Factory | Evolved 2 slots: Utility x2 1519 | -7/Factory | Identified exit to Storage 1700 | -7/Factory | Garrison activated, responded to threat 1761 | -7/Factory | Discovered new exit (range 3) 1861 | -7/Factory | Discovered new exit (range 16) 1940 | -7/Factory | Identified exit to Lower Caves 2044 | -7/Factory | Found Prototype Launcher 2045 | -7/Factory | Found Prototype Launcher 2101 | -7/Factory | Discovered new exit (range 16) 2143 | -7/Factory | Entered another Factory area 2143 | -6/Factory | Evolved 2 slots: Utility x2 2148 | -6/Factory | Build established: Scavenger-Scout 2246 | -6/Factory | Identified Rocket Array (x2) 2322 | -6/Factory | Identified exit to Factory 2380 | -6/Factory | Discovered new exit (range 21) 2709 | -6/Factory | Destroyed 7 combat bots 2782 | -6/Factory | Build established: Hacker-Mutant 2801 | -6/Factory | Discovered new exit (range 14) 2903 | -6/Factory | Entered another Factory area 2903 | -5/Factory | Evolved 2 slots: Utility x2 2912 | -5/Factory | Identified exit to DSF 2915 | -5/Factory | Entered DSF 2941 | -5/DSF | Additional patrols routed to DSF 2977 | -5/DSF | Discovered new exit (range 14) 2985 | -5/DSF | Entered Garrison 3001 | -5/Garrison | Triggered checkpoint 3014 | -5/Garrison | Garrison Relay disabled 3236 | -5/Garrison | Triggered checkpoint 3236 | -5/Garrison | Triggered checkpoint 3336 | -5/Garrison | Triggered checkpoint 3375 | -5/Garrison | Destroyed 8 combat bots 3414 | -5/Garrison | Discovered new exit (range 10) 3417 | -5/Garrison | Attempted to access garrison exit controls, blocked by remote lockdown 3445 | -5/Garrison | Triggered checkpoint 3488 | -5/Garrison | Discovered new exit (range 10) 3609 | -5/Garrison | Triggered checkpoint 3617 | -5/Garrison | Discovered new exit (range 10) 3621 | -5/Garrison | Attempted to access garrison exit controls, blocked by remote lockdown 3689 | -5/Garrison | Triggered checkpoint 3706 | -5/Garrison | Installed Relay Interface Framework 3708 | -5/Garrison | Garrison Relay disabled 3715 | -5/Garrison | Triggered checkpoint 3722 | -5/Garrison | Entered Factory 3722 | -4/Factory | Evolved 2 slots: Power x1, Propulsion x1 3901 | -4/Factory | Spotted B-86 Titan 3925 | -4/Factory | Repaired Greatsword+ 3949 | -4/Factory | Repaired Hvy. Missile Launcher 3958 | -4/Factory | Identified exit to Research 4097 | -4/Factory | Build established: Hacker-Scout 4205 | -4/Factory | Entered Research 4205 | -3/Research | Evolved 2 slots: Propulsion x1, Utility x1 4244 | -3/Research | Discovered new exit (range 12) 4268 | -3/Research | Identified exit to Research 4371 | -3/Research | Entered another Research area 4371 | -2/Research | Evolved 2 slots: Utility x2 4551 | -2/Research | Identified exit to Access 4630 | -2/Research | Entered Access 4630 | -1/Access | Accompanied by 1 ally 4630 | -1/Access | Evolved 2 slots: Utility x2 4656 | -1/Access | Identified exit to Surface 4705 | -1/Access | Found Powered Armor 4729 | -1/Access | Repaired Imp. Light Armor Plating 4830 | -1/Access | Spotted B-99 Colossus 4941 | -1/Access | Found Prototype Processor 4941 | -1/Access | Identified Spectral Analyzer 5118 | -1/Access | Energy Cycler disabled 5236 | -1/Access | Build established: Wizard-Scout 6076 | *** | Escaped! Last Messages --------------- 05789_ Discarded Hacking Suite. 05791_ Discarded Imp. Hacking Suite. 05792_ Discarded System Shield. 05793_ Discarded Imp. System Shield. 05806_ Identified Cld. Q-thruster. 05806_ Faulty integration triggers system corruption (+5). 05808_ Dropped Faulty Cld. Q-thruster. 05821_ Dropped Hcp. Storage Unit. 05824_ Acquired Nuclear Pulse Thruster. 05858_ LET OP| 9=BDEU7O2S<3AT10R9ZIKMWYB 05898_ System corrupted: Matter fused (-6). 05899_ ALERT: Potential suspicious activity detected, Programmers report to Access Zone 2Y. 05947_ System corrupted: Matter fused (-5). 05976_ System corrupted: IFF burst signal emitted. 05981_ ALERT: Suspicious intruders detected, dispatching Cutter reinforcements to area. 06036_ System corrupted: Matter fused (-7). 06046_ Dropped Imp. Medium Armor Plating. 06058_ 5TWRC9Z0ENBS/JO>A Y8ZC8XE Map ----- +----------------------------------------------------+ | ?????????????????????????????????????????????????? | | ???????????????????????????????????????????????!?? | | ?????????????????????????????????????????????????? | | ?????????????????????????????????????????????????? | | !????????????????????????????????????????????????? | | ?????????????????????????????????????????????????? | | ##????????????????????????????????????????? | | ######+##????????????????????????????????????????? | | ????????????????????????????????????? | | ????????????????????????????????????? | | ########## ????????????????????????????????????? | | ##### ????????????????????????????????????? | | ?????????## ????????????????????????????????????? | | ?????????## ????????????????????????????????????? | | ?????????##h ????????????????????????????????????? | | ????? ##?## ????????????????????????????????????? | | ????? ##?## ????????????????????????????????????? | | ????""#####p ##???#####??????????????????????????? | | ?? " #####hp#####################???????????????? | | ##### ####### #############???????????????? | | ##### """T""" |=""???????????????? | | ##?## """ """ ""="?BB????????????? | | ? ##?## "]""?BB????????????? | | ?????????## p "!""???????????????? | | ?????????## "" ""*"???????????????? | | ?????????## @" "*"???????????????? | | ?????????## g "" "???????????????? | | ?????????## g ""?BB????????????? | | ?????????## g "H""?BB????????????? | | ?????????## g ""=" ??????????????? | | ?????????## ####### ##############??????????????? | | ?????????## ######################??????????????? | | ?????????## ###############?????????????????????? | | ########### # ##?????????????????????? | | ########### # # ?????????????????????? | | ## + # ?????????]???????????? | | !!! ## # # ?????????????????????? | | !! ## # " # ?????????????????????? | | !! ## # """" # ?????????????????????? | | ! ## # """"" c+ ?????????????????????? | | ## # ? """"" #c?????????????????????? | | ## # ? """" # ?????????????????????? | | ## # ?? " ?? # ?????????????????????? | | "######+### # ?? ??????????????????????????? | | # ?? ????????????????????????? | | ##??########????????????????????????? | | ###########+###??########????????????????????????? | | ###### ??????????????????????????????????? | | ?????????????????????????????????????????????????? | | ?????????????????????????????????????????????????? | +----------------------------------------------------+ Best States ------------- Heat Dissipation 79 Energy Generation 33 Energy Capacity 200 Matter Stores 300 Matter Capacity 300 Sight Range 23 Terrain Scan Density 10 Cloak Strength 2 Armor Coverage 1000 Propulsion Shielding 66 Evasion (%) 75 Recoil Reduction 2 Offensive Hacking 44 Defensive Hacking 44 Item Schematics ----------------- None Robot Schematics ------------------ None Fabricated ------------ Nothing Repaired ---------- Greatsword | 68% | -4/Factory Hvy. Missile Launcher | 43% | -4/Factory Imp. Light Armor Plating | 75% | -1/Access Studied --------- VTOL Module | -6/Factory | Hacked Greatsword | -4/Factory | Hacked Mic. Fission Core | -4/Factory | Hacked Alien Tech Used ----------------- None Achievements -------------- None Challenges ------------ None Game ------ Seed ForceParticleForcewell Manual? 0 Play Time 01:24:50 Cumulative 207.6 hours Start 2026.04.14 @ 07:48:25 End 2026.04.14 @ 09:10:40 Sessions 1 Manual Loads 0 Difficulty Rogue Special Mode None Game No. 134 Rogue 130 Adventurer 4 Explorer 0 Win Type 0 Total 37 Types 36/0/1/0/0/0/0/0/0/0 Lore% 85 Gallery% 62 Achievement% 57 Wizard Run 0 Options --------- Layout 0 ASCII 0 Keyboard 1 Movement Vi Keybinds 0 Fullscreen 2 Font 18/SmallcapsGlow Map View 76x50 Zoom Use 0% Tactical HUD 1 Map Filters NONE Filters NONE Steam 1 RUN: 6425a2ef-1c72-4308-bc60-88a834cca6fc